bitfinex/quotes_ETHUSD_20220202
["timestamp","ask_amount","ask_price","bid_price","bid_amount"]
[1643821422574,1.0803518,2673.9,2673.4,0.45]
[1643821422575,0.00483817,2673.6,2673.4,0.45]
[1643821422775,0.00483817,2673.6,2673.2,1.1152]
[1643821422977,0.70896847,2673.6,2673.2,1.1152]
[1643821423174,0.00483817,2673.6,2673.2,1.1152]
[1643821423634,0.7041303,2673.8,2673.4,0.87565779]
[1643821423831,0.00483823,2673.5,2673.4,0.87565779]
[1643821424026,0.187,2674.2,2673.6,5.65]
[1643821424027,0.70516088,2674.2,2673.6,5.65]
[1643821424228,0.70516088,2674.5,2673.7,3.9328848]
[1643821424425,0.70516088,2674.5,2673.7,3.91430271]
[1643821424625,0.70516088,2674.5,2674.3,0.21414398]
[1643821424824,0.70516088,2674.5,2674.4,0.86989527]
[1643821425027,0.70516088,2674.5,2674.4,0.45]
[1643821425226,0.70516088,2674.6,2674.4,0.45]
[1643821426026,0.65516088,2674.6,2674.4,0.45]
[1643821426229,0.9388404,2674.9,2674.4,0.75]
[1643821426426,0.1869,2675.1,2674.4,0.75]
[1643821426626,0.9388404,2675.2,2674.5,2.18505557]
[1643821426826,1.5951606,2675.4,2674.6,0.45]
[1643821426827,0.9388404,2675.3,2674.6,0.45]
[1643821427026,0.9388404,2675.3,2674.4,0.3]
[1643821427279,0.9388404,2675.3,2674.7,1.33842434]
[1643821427679,0.84190683,2675.3,2674.7,0.45]
[1643821427880,1.4082606,2675.3,2674.3,0.6369]
[1643821428080,1.4082606,2675.0,2674.0,0.1869]
[1643821428280,0.1869,2674.9,2673.9,1.2095]
[1643821428679,1.5951606,2674.9,2673.9,1.2095]
[1643821428882,1.5951606,2674.9,2673.9,1.39984716]
[1643821428883,0.35938685,2674.9,2673.9,1.39984716]
[1643821429081,0.35938685,2674.9,2674.1,0.87570036]
[1643821429980,0.1869,2674.9,2674.1,0.87570036]
[1643821430183,0.1869,2675.0,2674.2,0.45]
[1643821430781,0.1869,2675.0,2674.3,0.18706]
[1643821431025,9.13336057,2675.5,2674.9,0.71615792]
[1643821431220,7.72509997,2675.5,2674.9,0.71615792]
[1643821431424,7.72509997,2675.5,2674.9,1.16615792]
[1643821431820,7.53819997,2675.5,2674.9,0.45]
[1643821432222,0.00518787,2675.3,2674.9,0.45]
[1643821432625,0.17543916,2675.0,2674.9,0.45]
[1643821432824,0.17543916,2675.0,2674.4,4.0747]
[1643821433025,0.17543916,2675.0,2674.4,0.1869]
[1643821433423,0.00518797,2675.1,2674.4,0.1869]
[1643821434425,0.1869,2675.4,2674.4,0.1869]
[1643821434426,0.22478764,2675.3,2674.4,0.1869]
[1643821434626,0.00518774,2675.1,2674.3,0.43134494]
[1643821434899,0.00518774,2675.1,2674.3,0.91824494]
[1643821435091,0.00518774,2675.1,2674.4,0.18706]
[1643821435488,7.70103553,2675.5,2674.5,3.25]
[1643821435689,7.68028771,2675.5,2674.4,0.18706]
[1643821435891,0.1935952,2674.9,2674.3,0.91824494]
[1643821436093,0.1935952,2674.9,2674.2,0.00518963]
[1643821436291,0.70165066,2674.8,2674.2,0.00518963]
[1643821436492,0.88855066,2674.8,2674.2,0.00518963]
[1643821436891,0.88855066,2674.8,2673.9,0.67292056]
[1643821437095,0.1869,2674.8,2674.4,0.00518895]
[1643821437693,0.00518726,2675.2,2674.4,0.00518895]
[1643821437895,0.1869,2675.1,2674.4,0.00518895]
[1643821438093,0.1869,2675.1,2674.0,0.45]
[1643821438530,0.1869,2675.1,2674.5,0.00518887]
[1643821438731,0.00518738,2675.2,2674.5,0.00518887]
[1643821438932,0.00518738,2675.2,2674.6,0.45]
[1643821439130,4.38855066,2675.4,2674.6,0.75]
[1643821439131,0.88408636,2675.1,2674.6,0.75]
[1643821439336,0.88408636,2675.0,2674.6,0.75]
[1643821439631,0.83408636,2674.9,2674.7,0.00518868]
[1643821439831,0.00518766,2675.2,2674.7,0.00518868]
[1643821440435,0.88855066,2675.4,2674.5,0.45]
[1643821440632,0.88855066,2675.4,2674.5,0.75]
[1643821440833,0.88855066,2675.4,2674.7,0.00518879]
[1643821440834,0.00518778,2675.2,2674.7,0.00518879]
[1643821441432,0.00518778,2675.2,2674.7,0.92375586]
[1643821441837,0.00518778,2675.2,2674.7,1.22375586]
[1643821442273,0.00518778,2675.2,2674.7,1.43264189]
[1643821443275,0.00518778,2675.2,2674.8,0.45]
[1643821443476,0.95608937,2675.9,2675.0,5.65]
[1643821443477,0.70165066,2675.7,2675.0,5.65]
[1643821443677,0.72239659,2675.9,2675.1,3.04482072]
[1643821443875,0.72239659,2675.9,2675.4,0.18538024]
[1643821444076,0.02074593,2675.9,2675.5,0.45]
[1643821444276,0.02074593,2675.9,2675.5,0.75]
[1643821444482,7.415,2676.1,2675.9,0.71423349]
[1643821444674,7.415,2676.1,2675.5,0.75]
[1643821444675,8.11665066,2676.1,2675.8,1.16466876]
[1643821444875,8.11165066,2676.1,2675.8,0.45]
[1643821445078,8.11165066,2676.1,2675.8,0.75]
[1643821445380,0.01,2676.1,2675.9,0.16895297]
[1643821445578,0.70165066,2676.3,2675.8,0.75]
[1643821445778,0.70165066,2676.1,2675.8,0.75]
[1643821446032,0.70665066,2676.2,2675.8,0.75]
[1643821446230,0.70165066,2676.2,2675.8,0.75]
[1643821446428,0.70165066,2676.3,2675.8,0.75]
[1643821446928,0.70165066,2676.2,2675.8,0.75]
[1643821447331,0.70165066,2676.3,2675.8,0.45]
[1643821447534,0.70165066,2676.0,2675.4,0.1867]
[1643821447730,0.70165066,2675.9,2675.4,0.34661121]
[1643821447930,0.1867,2675.9,2675.4,0.1867]
[1643821448230,0.70165066,2675.9,2675.4,0.1867]
[1643821448429,0.1867,2676.0,2675.4,0.1867]
[1643821448430,0.70165066,2675.8,2675.4,0.1867]
[1643821449128,0.00521039,2675.7,2675.4,0.1867]
[1643821449978,0.70165066,2675.9,2674.9,0.37376]
[1643821450374,0.00521043,2675.7,2675.0,0.00521173]
[1643821451176,0.70165066,2675.9,2674.9,0.37376]
[1643821451379,0.17793185,2675.8,2675.0,0.84435935]
[1643821451575,0.00521059,2675.5,2675.0,1.14957085]
[1643821452380,0.17793185,2675.8,2675.0,1.14435935]
[1643821452574,0.17793185,2675.8,2675.0,0.3]
[1643821452878,0.00521067,2675.4,2675.0,0.00521139]
[1643821453076,0.70686133,2675.4,2675.0,0.00521139]
[1643821453534,0.21843302,2675.3,2675.0,0.00521139]
[1643821453726,0.21843302,2675.3,2674.4,8.8557]
[1643821454026,0.00305858,2675.3,2674.4,8.8557]
[1643821454627,0.00305858,2675.3,2674.4,8.8057]
[1643821454828,0.1869,2675.5,2674.4,7.11565442]
[1643821455031,0.20989238,2675.2,2674.5,0.67562849]
[1643821455426,0.20989238,2675.2,2674.3,0.1869]
[1643821455628,0.20989238,2675.2,2674.1,0.1869]
[1643821455629,0.39679238,2675.2,2674.1,0.1869]
[1643821455828,1.09844304,2675.2,2673.8,1.188]
[1643821456027,1.09844304,2675.2,2673.9,0.18706]
[1643821456028,0.39679238,2675.2,2673.9,0.18706]
[1643821456227,0.39679238,2675.2,2674.0,0.1869]
[1643821456228,1.09844304,2675.2,2674.0,0.1869]
[1643821456726,1.09844304,2675.2,2674.5,0.00521753]
[1643821456927,0.39679238,2675.2,2674.5,0.00521753]
[1643821457374,1.09844304,2675.2,2674.5,0.00521753]
[1643821457578,1.09844304,2675.2,2674.1,1.11250779]
[1643821457780,1.09844304,2675.2,2674.1,1.29956779]
[1643821457975,0.39679238,2675.2,2674.1,1.29956779]
[1643821458176,0.39679238,2675.2,2674.1,2.29956779]
[1643821459078,0.70470276,2675.3,2674.6,0.86913821]
[1643821459277,0.70470276,2675.3,2674.6,1.16913821]
[1643821459278,0.0030521,2675.3,2674.6,1.16913821]
[1643821459776,0.70165066,2675.5,2674.6,1.16913821]
[1643821459977,0.19092441,2675.1,2674.6,1.16913821]
[1643821460180,0.19092441,2675.1,2674.5,0.1869]
[1643821460181,0.84267209,2675.0,2674.5,0.1869]
[1643821461223,0.84267209,2674.9,2674.6,0.005216]
[1643821461422,0.00521461,2675.3,2674.6,0.005216]
[1643821461922,0.20998945,2675.3,2674.6,0.005216]
[1643821462122,0.20477484,2675.3,2674.7,0.82044085]
[1643821462324,0.9064255,2675.3,2674.7,0.82044085]
[1643821462522,0.91164033,2675.3,2674.8,0.00521584]
[1643821462726,0.70686549,2675.3,2674.8,0.00521584]
[1643821462922,0.00521483,2675.3,2674.8,0.00521584]
[1643821463322,0.70165066,2675.3,2674.7,1.12044085]
[1643821463523,0.70165066,2675.4,2674.7,1.12044085]
[1643821463722,0.70686561,2675.3,2674.9,0.00521576]
[1643821464523,0.70165066,2675.2,2674.7,0.3]
[1643821464785,0.21975753,2675.2,2675.0,0.00521572]
[1643821465177,0.92140819,2675.2,2675.0,0.00521572]
[1643821465876,0.92140819,2675.2,2674.7,0.18706]
[1643821466077,0.92140819,2675.2,2675.0,0.00521572]
[1643821466277,0.70165066,2675.2,2675.0,0.00521572]
[1643821467081,0.70165066,2675.2,2674.7,0.18706]
[1643821467380,0.70165066,2675.2,2675.0,0.00521572]
[1643821467781,0.94055845,2675.3,2675.0,0.00521572]
[1643821467985,0.93534344,2675.2,2675.0,0.00521572]
[1643821468180,0.93534344,2675.1,2675.0,0.00521572]
[1643821468382,1.4082606,2675.1,2674.2,0.1869]
[1643821468627,2.7406187,2675.2,2675.0,0.00521568]
[1643821468826,1.41681735,2675.1,2675.0,0.00521568]
[1643821469026,1.60371735,2675.1,2675.0,0.00521568]
[1643821469427,1.60371735,2675.1,2674.1,0.72241656]
[1643821469626,0.70857402,2674.6,2674.1,0.72241656]
[1643821469827,0.70857402,2674.6,2674.0,0.2922]
[1643821470028,0.16796936,2674.1,2674.0,0.2922]
[1643821470230,0.70857402,2674.5,2674.0,0.2922]
[1643821470429,0.70857402,2674.6,2674.0,0.2922]
[1643821470633,0.70857402,2674.5,2674.0,0.2922]
[1643821471034,0.70857402,2674.6,2674.0,0.2922]
[1643821471232,0.70857402,2674.5,2674.0,0.2922]
[1643821471435,0.20325315,2674.1,2674.0,0.2922]
[1643821473477,0.70857402,2674.4,2674.0,0.2922]
[1643821474477,0.70857402,2674.4,2674.1,0.00521645]
[1643821474680,0.70857402,2674.6,2674.1,2.17048666]
[1643821474879,1.51020506,2675.1,2674.1,0.00521645]
[1643821474880,0.70857402,2674.7,2674.1,0.00521645]
[1643821475079,0.14788152,2673.9,2673.7,2.65272264]
[1643821475278,0.14788152,2673.9,2673.7,1.65272264]
[1643821475479,0.14788152,2673.9,2673.8,4.15]
[1643821475680,0.14788152,2673.9,2673.8,3.15]
[1643821475881,0.09788152,2673.9,2673.8,4.15]
[1643821476128,0.09788152,2673.9,2673.8,4.33706]
[1643821476728,0.09788152,2673.9,2673.8,0.18706]
[1643821476930,0.09788152,2673.9,2673.7,0.1869]
[1643821477130,0.09788152,2673.9,2673.6,0.1869]
[1643821477328,0.09788152,2673.9,2673.5,2.42557226]
[1643821477527,0.09788152,2673.9,2673.5,1.23187226]
[1643821477728,0.09788152,2673.9,2673.4,0.187]
[1643821477729,0.19344166,2673.8,2673.4,0.187]
[1643821478130,0.19344166,2673.8,2673.6,0.00215991]
[1643821479128,0.19344166,2673.8,2673.4,0.187]
[1643821479328,0.09788152,2673.9,2673.6,0.00521596]
[1643821479529,0.04783533,2673.9,2673.6,0.00521596]
[1643821479777,0.04783533,2673.9,2673.6,0.19227596]
[1643821479976,0.7137878,2674.7,2673.8,5.83706]
[1643821479977,0.89557402,2674.6,2673.8,5.83706]
[1643821480177,0.89557402,2674.6,2674.5,3.05]
[1643821480178,0.70857402,2674.6,2674.5,3.05]
[1643821480378,0.70857402,2674.9,2674.5,3.05]
[1643821480577,0.70857402,2674.9,2674.5,3.35]
[1643821480776,0.00521384,2674.7,2674.5,3.35]
[1643821480976,0.68464152,2675.0,2674.5,0.3]
[1643821481180,0.68464152,2675.0,2674.6,0.18706]
[1643821481578,0.81470481,2674.9,2674.6,0.18706]
[1643821481776,0.81470481,2674.8,2674.6,0.18706]
[1643821482076,0.81470481,2674.7,2674.6,0.18706]
[1643821482276,0.81470481,2674.7,2674.6,4.28591237]
[1643821482678,0.81470481,2674.7,2674.6,5.28591237]
[1643821482878,0.81470481,2674.7,2674.6,2.08591237]
[1643821483278,0.81470481,2674.7,2674.6,3.73591237]
[1643821483730,0.81470481,2674.7,2674.6,4.73591237]
[1643821485228,0.81470481,2674.7,2674.6,0.89885237]
[1643821485526,0.81470481,2674.7,2674.5,0.3]
[1643821485527,0.81470481,2674.7,2674.5,0.00479675]
[1643821485728,0.81470481,2674.6,2674.5,0.00479675]
[1643821486126,0.81470481,2674.6,2674.5,0.19185675]
[1643821486330,0.81470481,2674.6,2674.5,2.9]
[1643821486826,0.81470481,2674.6,2674.5,3.2]
[1643821487881,0.81470481,2674.6,2674.5,3.38706]
[1643821488081,0.81470481,2674.6,2674.5,4.38706]
[1643821488281,0.81470481,2674.6,2674.5,6.57598794]
[1643821488483,0.81470481,2674.6,2674.5,5.14363555]
[1643821488683,0.81470481,2674.6,2674.5,5.36706705]
[1643821489184,0.1869,2675.4,2674.6,5.65]
[1643821489185,0.00505221,2675.0,2674.6,5.65]
[1643821489386,0.00505221,2675.0,2674.8,1.86877]
[1643821489685,0.00505221,2675.0,2674.9,8.60978727]
[1643821489882,0.94476535,2675.9,2675.2,0.93437]
[1643821490084,0.94476535,2675.9,2675.3,0.18706]
[1643821490283,0.94476535,2675.9,2675.1,0.45]
[1643821490284,0.02085266,2675.7,2675.1,0.45]
[1643821490487,0.02085266,2675.7,2675.2,0.18706]
[1643821491128,0.02085266,2675.7,2675.3,0.91182767]
[1643821491129,0.73001401,2675.7,2675.3,0.91182767]
[1643821491330,0.02085266,2675.7,2675.4,0.18706]
[1643821491635,0.00521402,2675.6,2675.4,0.18673]
[1643821491830,0.00521402,2675.6,2675.5,5.73673]
[1643821492229,0.70916135,2675.9,2675.5,6.73673]
[1643821492629,0.0047329,2675.7,2675.5,6.73673]
[1643821492831,0.0047329,2675.7,2675.5,1.18673]
[1643821493230,0.0047329,2675.7,2675.5,0.18673]
[1643821493431,0.0047329,2675.7,2675.6,2.98673]
[1643821493930,0.00456081,2675.7,2675.6,2.98673]
[1643821494772,0.90086135,2676.1,2675.6,2.98673]
[1643821494975,0.00456078,2675.8,2675.6,1.29722148]
[1643821495172,0.00456078,2675.8,2675.3,0.9026834]
[1643821495373,0.8736625,2676.2,2675.4,2.4]
[1643821495573,0.8686625,2676.2,2675.3,0.71240152]
[1643821495774,0.70916135,2676.0,2675.2,1.0]
[1643821495976,0.70916135,2676.0,2674.9,0.1867]
[1643821495977,0.70916135,2675.7,2674.9,0.1867]
[1643821496175,0.99999999,2676.1,2674.8,0.04481226]
[1643821496176,0.70916135,2675.6,2674.8,0.04481226]
[1643821496573,0.1869,2675.5,2674.8,0.04481226]
[1643821496776,0.20771485,2675.4,2674.8,0.04481226]
[1643821496975,0.9168762,2675.4,2674.9,0.86548769]
[1643821497175,0.15771485,2675.4,2674.9,0.86548769]
[1643821497374,0.15771485,2675.4,2675.0,0.0021778]
[1643821497775,0.1869,2675.3,2675.0,0.0021778]
[1643821497976,0.89606135,2675.3,2675.0,0.0021778]
[1643821498176,0.70916135,2675.2,2675.0,0.0021778]
[1643821498376,0.1869,2675.1,2674.5,1.0448]
[1643821498626,0.1869,2675.2,2674.5,1.85208269]
[1643821499429,0.1869,2675.3,2674.5,1.85208269]
[1643821499829,0.1869,2675.3,2674.5,2.15208269]
[1643821500028,0.89606135,2675.5,2674.5,2.15208269]
[1643821500229,0.70916135,2675.4,2674.5,2.15208269]
[1643821500427,0.1869,2675.3,2674.5,2.15208269]
[1643821501128,0.1869,2675.3,2674.5,1.85208269]
[1643821501331,0.70916135,2675.4,2674.5,1.85208269]
[1643821501932,0.70916135,2675.4,2674.5,2.15208269]
[1643821502129,0.70916135,2675.4,2674.5,1.85208269]
[1643821502374,0.21496281,2675.3,2674.8,0.00520951]
[1643821502574,0.70834535,2675.4,2674.8,0.00520951]
[1643821503175,0.70834535,2675.4,2674.5,2.33898269]
[1643821503376,0.70834535,2675.4,2675.0,0.00520938]
[1643821503576,0.1869,2675.6,2675.0,0.00520938]
[1643821504376,0.2242125,2675.1,2674.5,2.33898269]
[1643821504778,1.13166535,2675.6,2674.5,2.33898269]
[1643821504779,0.94476535,2675.5,2674.5,2.33898269]
[1643821504979,0.1869,2675.4,2674.5,2.33898269]
[1643821505178,0.1869,2675.5,2674.5,2.15208269]
[1643821505580,1.86952,2676.0,2674.8,0.01221064]
[1643821505581,0.1869,2675.8,2674.8,0.01221064]
[1643821505881,0.19181145,2675.9,2674.8,1.41988315]
[1643821506133,0.19181145,2675.9,2674.8,0.46732422]
[1643821506134,0.94476535,2675.8,2674.8,0.46732422]
[1643821506329,0.19181145,2675.9,2675.1,0.73211017]
[1643821506330,1.1365768,2675.9,2675.1,0.73211017]
[1643821506731,0.19181145,2675.9,2675.1,0.73211017]
[1643821507031,1.1365768,2675.9,2675.1,0.73211017]
[1643821507335,1.13657197,2675.9,2675.2,0.0051081]
[1643821507729,0.19180662,2675.9,2675.2,0.0051081]
[1643821507930,0.22315362,2675.6,2675.2,0.0051081]
[1643821508330,0.22315362,2675.6,2675.2,0.00997096]
[1643821508532,0.22315362,2675.6,2675.2,0.00486286]
[1643821508932,2.0709768,2675.9,2675.2,0.00486286]
[1643821509131,0.76125259,2675.8,2675.2,0.00486286]
[1643821509331,0.76125259,2675.8,2675.0,0.92213359]
[1643821509531,0.76125259,2675.8,2675.2,0.0048627]
[1643821509789,0.94795259,2675.8,2675.2,0.0048627]
[1643821509987,0.20676241,2675.3,2675.2,0.0048627]
[1643821510481,0.968015,2675.3,2675.2,0.0048627]
[1643821510882,0.76125259,2675.3,2675.1,0.00486806]
[1643821511081,0.76125259,2675.2,2675.1,0.00486806]
[1643821511282,0.76125259,2675.7,2675.1,0.00486806]
[1643821511881,0.16995332,2675.4,2675.2,0.00474744]
[1643821512081,0.76125259,2675.3,2675.2,0.00474744]
[1643821512486,1.46871081,2675.7,2675.2,0.00474744]
[1643821512687,0.76125259,2675.6,2675.2,0.00474744]
[1643821512884,0.76125259,2675.5,2675.3,0.45]
[1643821513084,0.76125259,2675.4,2675.3,0.65244062]
[1643821513283,0.00474592,2675.9,2675.3,0.65244062]
[1643821513527,0.76125259,2675.8,2675.3,0.65244062]
[1643821513727,0.76125259,2675.7,2675.3,1.58678062]
[1643821513927,0.76125259,2675.6,2675.4,0.75681291]
[1643821514127,0.71245822,2676.1,2675.4,6.40681291]
[1643821514330,0.1867,2676.3,2675.8,0.21230064]
[1643821514331,0.00458603,2675.9,2675.8,0.21230064]
[1643821514529,0.73079775,2676.6,2676.0,0.01200833]
[1643821514727,0.73079775,2676.6,2676.1,0.45]
[1643821514728,0.72579775,2676.6,2676.1,0.45]
[1643821515132,0.01833953,2676.6,2676.2,0.73208433]
[1643821515330,0.70745822,2676.6,2676.2,0.73208433]
[1643821515533,0.71245822,2676.8,2676.4,0.16483596]
[1643821515733,0.71245822,2676.9,2676.5,0.45]
[1643821515935,0.71245822,2676.9,2676.3,1.12078]
[1643821515936,0.71245822,2677.0,2676.6,0.45]
[1643821516131,0.71245822,2677.0,2676.6,2.3177442]
[1643821516332,0.71245822,2677.0,2676.8,0.769331]
[1643821516731,0.005,2677.0,2676.6,2.3177442]
[1643821516932,0.71245822,2677.0,2676.6,2.3177442]
[1643821517131,0.005,2677.0,2676.7,0.93388]
[1643821517779,0.005,2677.0,2676.5,0.1867]
[1643821517974,0.005,2677.0,2676.4,0.1867]
[1643821518175,0.71245822,2677.0,2676.4,4.0547983]
[1643821518377,0.71245822,2677.0,2676.5,0.45]
[1643821518676,0.71245822,2677.0,2676.5,1.45]
[1643821518677,0.005,2677.0,2676.5,1.45]
[1643821518875,0.005,2677.0,2676.8,0.67415994]
[1643821519074,0.005,2677.0,2676.5,0.45]
[1643821519275,0.00520411,2676.9,2676.4,0.1867]
[1643821519474,0.00520411,2676.9,2676.4,1.12076]
[1643821520074,0.005,2677.0,2676.5,0.92305937]
[1643821520275,0.00520419,2676.8,2676.5,0.92305937]
[1643821520675,0.00520419,2676.8,2676.5,1.92305937]
[1643821520876,0.00520419,2676.8,2676.5,4.72484657]
[1643821521132,0.00520419,2676.8,2676.7,5.84002734]
[1643821521336,0.005,2677.0,2676.7,7.3096723]
[1643821521632,0.005,2677.0,2676.8,0.1867]
[1643821521832,0.005,2677.0,2676.9,6.1]
[1643821522032,1.1093518,2677.1,2676.9,6.1]
[1643821522232,1.1093518,2677.1,2676.9,7.1]
[1643821522431,0.9593518,2677.1,2677.0,1.0]
[1643821522631,0.9593518,2677.1,2676.9,1.45]
[1643821522632,0.9543518,2677.1,2676.9,1.45]
[1643821522831,0.9543518,2677.1,2676.9,0.45]
[1643821522832,0.95955571,2677.1,2676.9,0.45]
[1643821523035,0.95955571,2677.1,2677.0,0.82141102]
[1643821523532,0.95955571,2677.1,2677.0,3.43016472]
[1643821523732,0.9543518,2677.1,2677.0,7.37141102]
[1643821524131,0.015,2677.6,2677.0,7.37141102]
[1643821524132,2.31e-05,2677.2,2677.1,4.6886549]
[1643821524334,0.01888957,2677.6,2677.5,0.01220787]
[1643821524531,0.01888957,2677.6,2677.3,2.63285761]
[1643821524779,0.01888957,2677.6,2677.2,0.19697527]
[1643821524780,0.01888957,2677.6,2677.4,0.45]
[1643821524981,0.015,2677.8,2677.4,0.45]
[1643821525781,0.015,2677.8,2677.5,0.93366]
[1643821526782,0.015,2677.8,2677.4,2.60239294]
[1643821526783,0.015,2677.8,2677.4,2.3171415]
[1643821527182,0.015,2677.8,2677.4,0.45]
[1643821527382,0.2017,2677.8,2677.4,0.45]
[1643821527783,0.00520342,2677.7,2677.4,0.45]
[1643821527983,0.00520342,2677.7,2677.5,0.78423592]
[1643821528187,0.00520342,2677.7,2677.5,3.72816592]
[1643821528630,0.00520342,2677.7,2677.5,1.86103592]
[1643821529026,0.00520342,2677.7,2677.6,4.58356]
[1643821529428,0.00520342,2677.7,2677.6,3.65]
[1643821529627,0.015,2677.8,2677.6,3.65]
[1643821530026,0.02020338,2677.8,2677.6,3.65]
[1643821530830,0.015,2677.8,2677.6,3.65]
[1643821531030,2.0790534,2677.9,2677.5,1.08423592]
[1643821532031,2.0790534,2677.9,2677.5,0.3]
[1643821532295,2.0790534,2677.9,2677.4,0.93369]
[1643821532296,0.00520335,2677.8,2677.4,0.93369]
[1643821532583,0.00520335,2677.8,2677.4,1.69667185]
[1643821532781,0.00520335,2677.8,2677.4,1.68369]
[1643821533282,2.0790534,2677.9,2677.1,0.83664238]
[1643821533486,2.0790534,2677.9,2677.0,0.1867]
[1643821533487,0.204393,2677.3,2677.0,0.1867]
[1643821534082,0.1867,2677.2,2677.0,0.1867]
[1643821534384,0.71965345,2677.1,2676.3,0.75437363]
[1643821534582,0.17921134,2676.8,2676.2,0.04481226]
[1643821534783,0.1867,2677.0,2676.3,0.00520556]
[1643821534982,0.1867,2677.2,2676.3,0.00520556]
[1643821535182,0.70989362,2677.1,2676.3,0.00520556]
[1643821535382,0.1867,2677.0,2676.3,0.93927556]
[1643821535584,0.1867,2677.2,2676.3,2.80719896]
[1643821535882,0.1867,2677.2,2676.9,0.94029484]
[1643821536138,0.1867,2677.2,2676.9,0.08502178]
[1643821536334,0.69380134,2677.1,2676.3,1.87311511]
[1643821536737,0.69380134,2677.1,2676.3,0.00520511]
[1643821536933,0.69380134,2677.1,2676.3,0.93926511]
[1643821537138,0.69380134,2677.1,2676.3,0.93406]
[1643821537333,0.1867,2677.2,2676.9,0.92077908]
[1643821537534,0.1867,2677.2,2676.3,0.93891906]
[1643821537934,0.71951621,2677.1,2676.3,0.00485906]
[1643821538136,0.1867,2677.2,2676.2,0.04481226]
[1643821538334,2.75013276,2677.6,2676.3,0.00468344]
[1643821538335,0.71952056,2677.1,2676.3,0.00468344]
[1643821538534,0.71952056,2677.0,2676.3,0.80810067]
[1643821538745,0.02,2677.0,2676.3,0.80810067]
[1643821539035,0.1867,2677.2,2676.3,0.00468344]
[1643821539236,0.71953813,2677.1,2676.2,0.04481226]
[1643821539437,0.1867,2677.0,2676.2,0.04481226]
[1643821539636,0.1867,2677.0,2676.3,0.00468334]
[1643821539886,0.1867,2677.2,2676.3,0.16284367]
[1643821540082,0.71955975,2677.1,2676.5,0.79286965]
[1643821540284,0.2067,2677.2,2676.3,0.00468334]
[1643821540488,0.1867,2677.2,2676.3,0.00468334]
[1643821540686,0.1867,2677.2,2676.2,0.97883226]
[1643821540885,0.0050277,2677.3,2676.3,0.00502955]
[1643821541185,0.90626972,2677.2,2676.3,0.00502955]
[1643821541390,0.1867,2677.2,2676.3,0.00502955]
[1643821541584,0.1867,2677.2,2676.3,0.20267032]
[1643821541783,0.1867,2677.2,2676.5,0.87835381]
[1643821541984,0.02,2677.6,2676.5,1.17835381]
[1643821541985,0.1867,2677.5,2676.5,1.17835381]
[1643821542186,0.1867,2677.5,2676.5,3.04632741]
[1643821542385,0.1867,2677.7,2676.5,3.04632741]
[1643821542586,0.69414655,2677.6,2676.6,1.0]
[1643821542785,0.1867,2677.5,2676.5,2.11234381]
[1643821542986,0.69414655,2677.4,2676.5,2.11234381]
[1643821543389,0.69414655,2677.4,2676.5,3.04632031]
[1643821543827,0.69414655,2677.4,2676.6,1.0]
[1643821544430,0.0051957,2677.3,2676.6,1.0]
[1643821544928,0.0051957,2677.3,2676.9,0.2098881]
[1643821545127,0.0051957,2677.3,2676.6,1.0]
[1643821545128,0.0051957,2677.3,2676.8,0.93391]
[1643821545328,0.0051957,2677.3,2676.6,1.0]
[1643821545329,0.97673697,2677.7,2676.6,1.0]
[1643821545529,0.69495509,2677.6,2676.5,2.36505381]
[1643821545729,0.00519544,2677.3,2676.5,2.36505381]
[1643821545930,0.00519544,2677.3,2676.5,2.17835381]
[1643821546129,0.17542262,2677.3,2676.5,2.17835381]
[1643821546431,0.69509793,2677.2,2676.5,2.17835381]
[1643821547129,0.00519544,2677.3,2676.5,1.17835381]
[1643821547130,0.00519522,2677.3,2676.5,1.17835381]
[1643821547783,0.2067,2677.5,2676.5,2.11233171]
[1643821547986,0.6951671,2677.4,2676.5,1.17835381]
[1643821548183,0.00519522,2677.3,2676.5,2.17835381]
[1643821548385,0.69526285,2677.2,2676.5,2.17835381]
[1643821548784,0.69526285,2677.2,2676.5,3.11232661]
[1643821548985,0.00519522,2677.3,2676.7,0.93395]
[1643821549188,0.00519522,2677.3,2676.7,1.23395]
[1643821549384,0.00494916,2677.3,2676.7,0.3]
[1643821549584,0.00494916,2677.3,2676.7,2.3]
[1643821549785,0.00494916,2677.3,2676.7,0.3]
[1643821549985,0.00494916,2677.3,2676.8,0.20321068]
[1643821550686,0.00494932,2677.3,2677.0,0.80958419]
[1643821550884,0.00494932,2677.3,2676.7,1.23394]
[1643821550885,0.00494932,2677.3,2676.7,1.3]
[1643821551128,0.00494932,2677.3,2676.7,0.3]
[1643821551324,0.2067,2677.8,2676.6,0.3]
[1643821551527,0.69655136,2677.7,2676.6,1.3]
[1643821551729,0.00494932,2677.3,2676.5,2.86783]
[1643821552030,0.69655136,2677.2,2676.8,0.21144]
[1643821552826,0.00302934,2677.3,2676.8,0.21144]
[1643821553627,0.69966628,2677.3,2676.8,0.21144]
[1643821553826,0.69663694,2677.3,2676.8,0.21144]
[1643821554028,0.69966633,2677.3,2676.8,0.21144]
[1643821554429,0.71966633,2677.3,2676.8,1.32881]
[1643821554630,0.00302939,2677.3,2676.8,1.32881]
[1643821554884,0.72889796,2677.6,2676.8,1.32881]
[1643821555086,0.72889796,2677.5,2676.8,2.32881]
[1643821555283,0.2067,2677.8,2676.8,2.32881]
[1643821555284,0.00302939,2677.3,2676.8,2.32881]
[1643821555484,0.00302939,2677.3,2677.1,0.94949603]
[1643821555784,0.00302939,2677.3,2677.0,0.21618612]
[1643821555785,0.00302939,2677.3,2677.0,0.21144]
[1643821556185,0.91415822,2677.8,2677.0,0.01478416]
[1643821556186,0.72940656,2677.5,2677.0,0.01478416]
[1643821556384,0.72940656,2677.4,2676.9,0.21109]
[1643821556583,0.02,2677.7,2676.9,0.21109]
[1643821556584,0.73461352,2677.3,2676.9,0.21109]
[1643821556786,0.72940656,2677.2,2677.1,0.21109]
[1643821556986,0.72187967,2677.2,2677.1,0.21109]
[1643821558387,0.71818767,2677.2,2677.1,0.21109]
[1643821558836,0.02,2677.6,2677.1,0.21109]
[1643821559039,0.00520696,2677.3,2677.2,0.21109]
[1643821559933,0.70745822,2677.6,2677.2,0.21109]
[1643821560136,0.00520697,2677.4,2677.2,0.21109]
[1643821560532,0.00520697,2677.4,2677.3,0.21109]
[1643821561141,0.70745822,2677.6,2677.3,0.21109]
[1643821561334,0.00508974,2677.5,2677.3,0.21109]
[1643821562137,0.71254796,2677.5,2677.3,0.21109]